fUST/lending_fUST_20240525
["ID","MTS","AMOUNT","RATE_DAILY","PERIOD"]
[327893002,1716583839929,-500.0,0.00024931,3]
[327893003,1716583839939,-500.0,0.00024931,3]
[327893004,1716583839948,-2040.19,0.00024931,3]
[327893005,1716583839957,-500.0,0.00024931,3]
[327893006,1716583839967,-500.0,0.00024931,3]
[327893007,1716583839976,-500.0,0.00024931,3]
[327893008,1716583839986,-500.0,0.00024931,3]
[327893009,1716583839996,-500.0,0.00024931,3]
[327893010,1716583840005,-500.0,0.00024931,3]
[327893011,1716583840014,-500.0,0.00024931,3]
[327893012,1716583840028,-500.0,0.00024931,3]
[327893013,1716583840038,-500.0,0.00024931,3]
[327893014,1716583840047,-500.0,0.00024931,3]
[327893015,1716583840056,-999.87,0.00024931,3]
[327893016,1716583840067,-500.0,0.00024931,3]
[327893017,1716583840076,-500.0,0.00024931,3]
[327893018,1716583840086,-500.0,0.00024931,3]
[327893019,1716583840096,-500.0,0.00024931,3]
[327893020,1716583840105,-500.0,0.00024931,3]
[327893021,1716583840115,-500.0,0.00024931,3]
[327893022,1716583840124,-500.0,0.00024931,3]
[327893023,1716583840134,-500.0,0.00024931,3]
[327893024,1716583840143,-500.0,0.00024931,3]
[327893025,1716583840152,-1038.41,0.00024999,9]
[327893026,1716583840161,-2250.77,0.00024999,3]
[327893027,1716583840170,-401.04849883,0.00025,2]
[327893028,1716583840179,-894.71433164,0.00025,2]
[327893029,1716583840189,-27445.42534762,0.00025,2]
[327893030,1716583840198,-22859.27879206,0.00025,2]
[327893031,1716583840207,-13369.62058427,0.00025,2]
[327893032,1716583840216,-1038.41,0.00025204,10]
[327893033,1716583840225,-2250.77,0.00025204,3]
[327893034,1716583840236,-500.0,0.00025205,4]
[327893035,1716583840245,-500.0,0.00025205,4]
[327893036,1716583840254,-500.0,0.00025205,4]
[327893037,1716583840264,-500.0,0.00025205,4]
[327893038,1716583840273,-500.0,0.00025205,4]
[327893039,1716583840283,-500.0,0.00025205,4]
[327893040,1716583840292,-500.0,0.00025205,4]
[327893041,1716583840301,-500.0,0.00025205,4]
[327893042,1716583840311,-500.0,0.00025205,4]
[327893043,1716583840320,-500.0,0.00025205,4]
[327893044,1716583840330,-500.0,0.00025205,4]
[327893045,1716583840340,-500.0,0.00025205,4]
[327893046,1716583840349,-500.0,0.00025205,4]
[327893047,1716583840359,-500.0,0.00025205,4]
[327893049,1716583840368,-500.0,0.00025205,4]
[327893050,1716583840377,-500.0,0.00025205,4]
[327893051,1716583840386,-500.0,0.00025205,4]
[327893052,1716583840396,-500.0,0.00025205,4]
[327893053,1716583840406,-500.0,0.00025205,4]
[327893055,1716583840414,-500.0,0.00025205,4]
[327893056,1716583840424,-500.0,0.00025205,4]
[327893057,1716583840433,-500.0,0.00025205,4]
[327893058,1716583840442,-500.0,0.00025205,4]
[327893059,1716583840452,-500.0,0.00025205,4]
[327893060,1716583840461,-500.0,0.00025205,4]
[327893061,1716583840470,-500.0,0.00025205,4]
[327893062,1716583840480,-500.0,0.00025205,4]
[327893063,1716583840491,-781.99,0.00025205,4]
[327893064,1716583840501,-500.0,0.00025205,4]
[327893065,1716583840510,-500.0,0.00025205,4]
[327893066,1716583840519,-500.0,0.00025205,4]
[327893067,1716583840529,-500.0,0.00025205,4]
[327893069,1716583840538,-500.0,0.00025205,4]
[327893071,1716583840547,-500.0,0.00025205,4]
[327893073,1716583840556,-500.0,0.00025205,4]
[327893074,1716583840566,-500.0,0.00025205,4]
[327893075,1716583840575,-744.22,0.00025205,4]
[327893076,1716583840584,-500.0,0.00025205,4]
[327893077,1716583840594,-500.0,0.00025205,4]
[327893078,1716583840603,-500.0,0.00025205,4]
[327893079,1716583840612,-349.00048686,0.00025205,4]
[327893080,1716583840622,-500.0,0.00025205,4]
[327893081,1716583840631,-500.0,0.00025205,4]
[327893082,1716583840641,-1992.29,0.00025205,4]
[327893083,1716583840650,-1621.54,0.00025205,4]
[327893084,1716583840659,-500.0,0.00025205,4]
[327893085,1716583840669,-673.85,0.00025205,4]
[327893086,1716583840679,-500.0,0.00025205,4]
[327893087,1716583840688,-500.0,0.00025205,4]
[327893088,1716583840697,-500.0,0.00025205,4]
[327893089,1716583840706,-2040.19,0.00025205,4]
[327893090,1716583840715,-500.0,0.00025205,4]
[327893091,1716583840724,-500.0,0.00025205,4]
[327893092,1716583840736,-500.0,0.00025205,4]
[327893093,1716583840745,-500.0,0.00025205,4]
[327893094,1716583840754,-500.0,0.00025205,4]
[327893095,1716583840764,-500.0,0.00025205,4]
[327893096,1716583840773,-500.0,0.00025205,4]
[327893097,1716583840782,-500.0,0.00025205,4]
[327893098,1716583840791,-231.24170626,0.00025205,4]
[327893099,1716583840801,-999.87,0.00025205,4]
[327893100,1716583840810,-500.0,0.00025205,4]
[327893101,1716583840820,-500.0,0.00025205,4]
[327893102,1716583840829,-500.0,0.00025205,4]
[327893103,1716583840838,-500.0,0.00025205,4]
[327893104,1716583840848,-500.0,0.00025205,4]
[327893105,1716583840857,-500.0,0.00025205,4]
[327893106,1716583840867,-500.0,0.00025205,4]
[327893107,1716583840876,-500.0,0.00025205,4]
[327893108,1716583840885,-7341.15827618,0.00025477,2]
[327893109,1716583840894,-1038.41,0.00025478,11]
[327893110,1716583840904,-2250.77,0.00025478,3]
[327893111,1716583840913,-500.0,0.00025479,5]
[327893112,1716583840922,-500.0,0.00025479,5]
[327893113,1716583840931,-160.36,0.00025479,5]
[327893114,1716583840941,-500.0,0.00025479,5]
[327893115,1716583840950,-500.0,0.00025479,5]
[327893116,1716583840959,-500.0,0.00025479,5]
[327893117,1716583840969,-500.0,0.00025479,5]
[327893118,1716583840978,-290.33,0.00025479,5]
[327893119,1716583840988,-500.0,0.00025479,5]
[327893120,1716583840997,-500.0,0.00025479,5]
[327893121,1716583841006,-500.0,0.00025479,5]
[327893122,1716583841016,-500.0,0.00025479,5]
[327893123,1716583841030,-500.0,0.00025479,5]
[327893124,1716583841039,-500.0,0.00025479,5]
[327893125,1716583841048,-500.0,0.00025479,5]
[327893126,1716583841059,-500.0,0.00025479,5]
[327893127,1716583841069,-341.35,0.00025479,5]
[327893128,1716583841078,-200.22,0.00025479,5]
[327893129,1716583841087,-500.0,0.00025479,5]
[327893130,1716583841098,-500.0,0.00025479,5]
[327893131,1716583841107,-500.0,0.00025479,5]
[327893132,1716583841116,-500.0,0.00025479,5]
[327893133,1716583841126,-302.30581018,0.00025479,5]
[327893134,1716583841135,-500.0,0.00025479,5]
[327893135,1716583841144,-500.0,0.00025479,5]
[327893136,1716583841154,-500.0,0.00025479,5]
[327893137,1716583841163,-781.99,0.00025479,5]
[327893139,1716583841172,-500.0,0.00025479,5]
[327893140,1716583841181,-500.0,0.00025479,5]
[327893141,1716583841191,-500.0,0.00025479,5]
[327893142,1716583841200,-500.0,0.00025479,5]
[327893143,1716583841209,-500.0,0.00025479,5]
[327893144,1716583841218,-159.23,0.00025479,5]
[327893145,1716583841228,-500.0,0.00025479,5]
[327893146,1716583841239,-500.0,0.00025479,5]
[327893147,1716583841248,-744.22,0.00025479,5]
[327893148,1716583841257,-500.0,0.00025479,5]
[327893149,1716583841267,-500.0,0.00025479,5]
[327893150,1716583841275,-500.0,0.00025479,5]
[327893151,1716583841285,-500.0,0.00025479,5]
[327893152,1716583841294,-500.0,0.00025479,5]
[327893153,1716583841303,-1992.29,0.00025479,5]
[327893154,1716583841313,-1621.54,0.00025479,5]
[327893155,1716583841324,-500.0,0.00025479,5]
[327893156,1716583841333,-673.85,0.00025479,5]
[327893157,1716583841342,-500.0,0.00025479,5]
[327893158,1716583841351,-500.0,0.00025479,5]
[327893159,1716583841360,-2040.19,0.00025479,5]
[327893160,1716583841370,-512.20554986,0.00025479,5]
[327893161,1716583841379,-500.0,0.00025479,5]
[327893162,1716583841388,-500.0,0.00025479,5]
[327893163,1716583841398,-581.31727498,0.00025479,5]
[327893164,1716583841407,-500.0,0.00025479,5]
[327893165,1716583841416,-500.0,0.00025479,5]
[327893166,1716583841426,-500.0,0.00025479,5]
[327893167,1716583841436,-999.87,0.00025479,5]
[327893168,1716583841446,-440.70151592,0.00025479,5]
[327893169,1716583841457,-500.0,0.00025479,5]
[327893170,1716583841466,-500.0,0.00025479,5]
[327893171,1716583841475,-500.0,0.00025479,5]
[327893172,1716583841486,-500.0,0.00025479,5]
[327893173,1716583841495,-500.0,0.00025479,5]
[327893174,1716583841504,-500.0,0.00025479,5]
[327893175,1716583841513,-500.0,0.00025753,6]
[327893176,1716583841521,-500.0,0.00025753,6]
[327893177,1716583841530,-500.0,0.00025753,6]
[327893178,1716583841539,-276.28,0.00025753,6]
[327893179,1716583841548,-500.0,0.00025753,6]
[327893180,1716583841557,-258.86,0.00025753,6]
[327893181,1716583841567,-500.0,0.00025753,6]
[327893182,1716583841576,-500.0,0.00025753,6]
[327893183,1716583841585,-500.0,0.00025753,6]
[327893184,1716583841594,-500.0,0.00025753,6]
[327893185,1716583841603,-500.0,0.00025753,6]
[327893186,1716583841612,-500.0,0.00025753,6]
[327893187,1716583841621,-500.0,0.00025753,6]
[327893188,1716583841630,-500.0,0.00025753,6]
[327893189,1716583841639,-500.0,0.00025753,6]
[327893190,1716583841648,-500.0,0.00025753,6]
[327893191,1716583841657,-500.0,0.00025753,6]
[327893192,1716583841666,-500.0,0.00025753,6]
[327893193,1716583841675,-398.11554875,0.00025753,6]
[327893194,1716583841684,-781.99,0.00025753,6]
[327893195,1716583841693,-500.0,0.00025753,6]
[327893196,1716583841702,-500.0,0.00025753,6]
[327893197,1716583841712,-500.0,0.00025753,6]
[327893198,1716583841721,-500.0,0.00025753,6]
[327893199,1716583841731,-500.0,0.00025753,6]
[327893200,1716583841743,-500.0,0.00025753,6]
[327893201,1716583841752,-500.0,0.00025753,6]
[327893202,1716583841762,-744.22,0.00025753,6]
[327893203,1716583841771,-582.9,0.00025753,6]
[327893204,1716583841781,-500.0,0.00025753,6]
[327893205,1716583841790,-500.0,0.00025753,6]
[327893206,1716583841799,-500.0,0.00025753,6]
[327893207,1716583841809,-500.0,0.00025753,6]
[327893208,1716583841819,-1992.29,0.00025753,6]
[327893209,1716583841828,-1621.54,0.00025753,6]
[327893210,1716583841836,-500.0,0.00025753,6]
[327893211,1716583841846,-673.85,0.00025753,6]
[327893212,1716583841855,-500.0,0.00025753,6]
[327893213,1716583841864,-500.0,0.00025753,6]
[327893214,1716583841874,-2040.19,0.00025753,6]
[327893215,1716583841883,-500.0,0.00025753,6]
[327893216,1716583841892,-500.0,0.00025753,6]
[327893217,1716583841902,-500.0,0.00025753,6]
[327893218,1716583841912,-500.0,0.00025753,6]
[327893219,1716583841921,-500.0,0.00025753,6]
[327893220,1716583841931,-999.87,0.00025753,6]
[327893221,1716583841940,-500.0,0.00025753,6]
[327893222,1716583841950,-500.0,0.00025753,6]
[327893223,1716583841959,-500.0,0.00025753,6]
[327893224,1716583841968,-500.0,0.00025753,6]
[327893225,1716583841978,-500.0,0.00025753,6]
[327893226,1716583841989,-500.0,0.00025753,6]
[327893227,1716583841998,-1484.65651,0.00025771,2]
[327893228,1716583842007,-620.6795879,0.00025931,2]
[327893229,1716583842021,-1038.41,0.00025999,12]
[327893230,1716583842031,-11163.7035002,0.00026,2]
[327893231,1716583842040,-2250.77,0.00026026,3]
[327893232,1716583842050,-360.97565246,0.00026027,7]
[327893233,1716583842059,-500.0,0.00026027,7]
[327893234,1716583842069,-500.0,0.00026027,7]
[327893235,1716583842078,-500.0,0.00026027,7]
[327893236,1716583842087,-500.0,0.00026027,7]
[327893237,1716583842098,-153.74406954,0.00026027,7]
[327893238,1716583842108,-587.04,0.00026027,7]
[327893239,1716583842117,-500.0,0.00026027,7]
[327893240,1716583842126,-592.36362551,0.00026027,7]
[327893241,1716583842135,-500.0,0.00026027,7]
[327893242,1716583842144,-500.0,0.00026027,7]
[327893243,1716583842154,-500.0,0.00026027,7]
[327893244,1716583842163,-500.0,0.00026027,7]
[327893245,1716583842172,-500.0,0.00026027,7]
[327893246,1716583842181,-500.0,0.00026027,7]
[327893247,1716583842191,-500.0,0.00026027,7]
[327893248,1716583842201,-781.99,0.00026027,7]
[327893249,1716583842211,-500.0,0.00026027,7]
[327893250,1716583842220,-500.0,0.00026027,7]
[327893251,1716583842229,-500.0,0.00026027,7]
[327893252,1716583842241,-500.0,0.00026027,7]
[327893253,1716583842250,-500.0,0.00026027,7]
[327893254,1716583842259,-500.0,0.00026027,7]
[327893255,1716583842268,-744.22,0.00026027,7]
[327893256,1716583842277,-500.0,0.00026027,7]
[327893257,1716583842286,-500.0,0.00026027,7]
[327893258,1716583842295,-500.0,0.00026027,7]
[327893259,1716583842304,-500.0,0.00026027,7]
[327893260,1716583842314,-1992.29,0.00026027,7]
[327893261,1716583842323,-1621.54,0.00026027,7]
[327893262,1716583842332,-500.0,0.00026027,7]
[327893263,1716583842341,-673.85,0.00026027,7]
[327893264,1716583842350,-500.0,0.00026027,7]
[327893265,1716583842359,-500.0,0.00026027,7]
[327893266,1716583842368,-2040.19,0.00026027,7]
[327893267,1716583842378,-500.0,0.00026027,7]
[327893268,1716583842387,-500.0,0.00026027,7]
[327893269,1716583842396,-500.0,0.00026027,7]
[327893270,1716583842405,-334.03,0.00026027,7]
[327893271,1716583842415,-500.0,0.00026027,7]
[327893272,1716583842424,-999.87,0.00026027,7]
[327893273,1716583842433,-500.0,0.00026027,7]
[327893274,1716583842442,-500.0,0.00026027,7]
[327893275,1716583842450,-500.0,0.00026027,7]
[327893276,1716583842459,-500.0,0.00026027,7]
[327893277,1716583842468,-500.0,0.00026027,7]
[327893278,1716583842477,-500.0,0.00026027,7]
[327893279,1716583842488,-366.67698101,0.00026196,2]
[327893280,1716583842497,-786.34825278,0.00026229,2]
[327893281,1716583842506,-1038.41,0.000263,13]
[327893282,1716583842516,-500.0,0.00026301,8]
[327893283,1716583842525,-500.0,0.00026301,8]
[327893284,1716583842534,-638.67,0.00026301,8]
[327893285,1716583842543,-500.0,0.00026301,8]
[327893286,1716583842552,-500.0,0.00026301,8]
[327893287,1716583842561,-466.25,0.00026301,8]
[327893288,1716583842570,-500.0,0.00026301,8]
[327893289,1716583842579,-500.0,0.00026301,8]
[327893290,1716583842588,-500.0,0.00026301,8]
[327893291,1716583842597,-500.0,0.00026301,8]
[327893292,1716583842607,-500.0,0.00026301,8]
[327893293,1716583842616,-553.2,0.00026301,8]
[327893294,1716583842624,-781.99,0.00026301,8]
[327893295,1716583842633,-500.0,0.00026301,8]
[327893296,1716583842642,-500.0,0.00026301,8]
[327893297,1716583842651,-500.0,0.00026301,8]
[327893298,1716583842660,-500.0,0.00026301,8]
[327893299,1716583842669,-500.0,0.00026301,8]
[327893300,1716583842678,-500.0,0.00026301,8]
[327893301,1716583842687,-744.22,0.00026301,8]
[327893304,1716583842696,-500.0,0.00026301,8]
[327893307,1716583842705,-500.0,0.00026301,8]
[327893308,1716583842715,-500.0,0.00026301,8]
[327893310,1716583842724,-500.0,0.00026301,8]
[327893312,1716583842733,-1992.29,0.00026301,8]
[327893313,1716583842744,-1621.54,0.00026301,8]
[327893314,1716583842753,-500.0,0.00026301,8]
[327893315,1716583842762,-673.85,0.00026301,8]
[327893316,1716583842771,-194.85,0.00026301,8]
[327893317,1716583842779,-2040.19,0.00026301,8]
[327893322,1716583842899,-500.0,0.00026301,8]
[327893323,1716583842908,-500.0,0.00026301,8]
[327893324,1716583842918,-500.0,0.00026301,8]
[327893325,1716583842927,-500.0,0.00026301,8]
[327893326,1716583842936,-545.04,0.00026301,8]
[327893327,1716583842946,-999.87,0.00026301,8]
[327893328,1716583842956,-500.0,0.00026301,8]
[327893329,1716583842967,-500.0,0.00026301,8]
[327893330,1716583842977,-347.94,0.00026301,8]
[327893332,1716583842986,-500.0,0.00026301,8]
[327893334,1716583842996,-500.0,0.00026301,8]
[327893335,1716583843005,-500.0,0.00026301,8]
[327893337,1716583843014,-500.0,0.00026575,9]
[327893339,1716583843027,-500.0,0.00026575,9]
[327893340,1716583843040,-500.0,0.00026575,9]
[327893341,1716583843051,-500.0,0.00026575,9]
[327893342,1716583843062,-500.0,0.00026575,9]
[327893343,1716583843072,-500.0,0.00026575,9]
[327893344,1716583843082,-500.0,0.00026575,9]
[327893345,1716583843092,-500.0,0.00026575,9]
[327893346,1716583843105,-500.0,0.00026575,9]
[327893347,1716583843116,-781.99,0.00026575,9]
[327893348,1716583843125,-300.86,0.00026575,9]
[327893349,1716583843135,-500.0,0.00026575,9]
[327893350,1716583843144,-500.0,0.00026575,9]
[327893351,1716583843155,-500.0,0.00026575,9]
[327893352,1716583843164,-500.0,0.00026575,9]
[327893354,1716583843174,-500.0,0.00026575,9]
[327893356,1716583843183,-744.22,0.00026575,9]
[327893357,1716583843192,-500.0,0.00026575,9]
[327893358,1716583843202,-500.0,0.00026575,9]
[327893359,1716583843212,-500.0,0.00026575,9]
[327893360,1716583843221,-211.75,0.00026575,9]
[327893361,1716583843230,-1992.29,0.00026575,9]
[327893362,1716583843241,-1621.54,0.00026575,9]
[327893363,1716583843250,-500.0,0.00026575,9]
[327893364,1716583843259,-673.85,0.00026575,9]
[327893365,1716583843268,-2040.19,0.00026575,9]
[327893366,1716583843277,-500.0,0.00026575,9]
[327893367,1716583843287,-500.0,0.00026575,9]
[327893368,1716583843295,-500.0,0.00026575,9]
[327893369,1716583843304,-500.0,0.00026575,9]
[327893370,1716583843314,-999.87,0.00026575,9]
[327893371,1716583843323,-500.0,0.00026575,9]
[327893372,1716583843332,-500.0,0.00026575,9]
[327893373,1716583843342,-500.0,0.00026575,9]
[327893374,1716583843351,-500.0,0.00026575,9]
[327893375,1716583843360,-500.0,0.00026575,9]
[327893376,1716583843369,-2250.77,0.00026848,3]
[327893377,1716583843378,-500.0,0.00026849,10]
[327893378,1716583843388,-500.0,0.00026849,10]
[327893379,1716583843398,-231.87,0.00026849,10]
[327893380,1716583843408,-500.0,0.00026849,10]
[327893381,1716583843417,-500.0,0.00026849,10]
[327893382,1716583843427,-500.0,0.00026849,10]
[327893383,1716583843437,-500.0,0.00026849,10]
[327893384,1716583843446,-500.0,0.00026849,10]
[327893385,1716583843455,-500.0,0.00026849,10]
[327893386,1716583843464,-781.99,0.00026849,10]
[327893387,1716583843475,-500.0,0.00026849,10]
[327893388,1716583843487,-500.0,0.00026849,10]
[327893389,1716583843496,-500.0,0.00026849,10]
[327893390,1716583843504,-500.0,0.00026849,10]
[327893391,1716583843514,-500.0,0.00026849,10]
[327893392,1716583843524,-744.22,0.00026849,10]
[327893393,1716583843533,-500.0,0.00026849,10]
[327893394,1716583843543,-365.45538699,0.00026849,10]
[327893396,1716583843553,-500.0,0.00026849,10]
[327893397,1716583843562,-1992.29,0.00026849,10]
[327893398,1716583843571,-1621.54,0.00026849,10]
[327893399,1716583843580,-500.0,0.00026849,10]
[327893400,1716583843590,-673.85,0.00026849,10]
[327893401,1716583843599,-2040.19,0.00026849,10]
[327893402,1716583843608,-207.15,0.00026849,10]
[327893403,1716583843618,-500.0,0.00026849,10]
[327893404,1716583843627,-500.0,0.00026849,10]
[327893405,1716583843636,-500.0,0.00026849,10]
[327893406,1716583843645,-999.87,0.00026849,10]
[327893407,1716583843655,-500.0,0.00026849,10]
[327893408,1716583843664,-500.0,0.00026849,10]
[327893409,1716583843673,-312.5,0.00026849,10]
[327893410,1716583843682,-500.0,0.00026849,10]
[327893411,1716583843691,-500.0,0.00026849,10]
[327893412,1716583843700,-1038.41,0.00027122,14]
[327893413,1716583843710,-500.0,0.00027123,11]
[327893414,1716583843719,-500.0,0.00027123,11]
[327893415,1716583843729,-500.0,0.00027123,11]
[327893416,1716583843739,-500.0,0.00027123,11]
[327893417,1716583843748,-500.0,0.00027123,11]
[327893418,1716583843758,-500.0,0.00027123,11]
[327893419,1716583843767,-500.0,0.00027123,11]
[327893420,1716583843776,-500.0,0.00027123,11]
[327893421,1716583843786,-781.99,0.00027123,11]
[327893422,1716583843795,-500.0,0.00027123,11]
[327893423,1716583843804,-500.0,0.00027123,11]
[327893424,1716583843814,-500.0,0.00027123,11]
[327893425,1716583843823,-500.0,0.00027123,11]
[327893427,1716583843833,-500.0,0.00027123,11]
[327893428,1716583843842,-744.22,0.00027123,11]
[327893429,1716583843852,-500.0,0.00027123,11]
[327893430,1716583843861,-500.0,0.00027123,11]
[327893431,1716583843871,-1992.29,0.00027123,11]
[327893432,1716583843880,-1621.54,0.00027123,11]
[327893433,1716583843889,-500.0,0.00027123,11]
[327893434,1716583843898,-673.85,0.00027123,11]
[327893435,1716583843908,-2040.19,0.00027123,11]
[327893436,1716583843917,-500.0,0.00027123,11]
[327893437,1716583843926,-302.98094965,0.00027123,11]
[327893438,1716583843935,-500.0,0.00027123,11]
[327893439,1716583843944,-999.87,0.00027123,11]
[327893440,1716583843953,-500.0,0.00027123,11]
[327893441,1716583843963,-500.0,0.00027123,11]
[327893442,1716583843972,-500.0,0.00027123,11]
[327893443,1716583843981,-500.0,0.00027123,11]
[327893444,1716583844212,-620.0339794,0.00027227,2]
[327893445,1716583844223,-1137.40253748,0.0002739,2]
[327893446,1716583844233,-352.42,0.00027397,12]
[327893447,1716583844244,-500.0,0.00027397,12]
[327893448,1716583844254,-500.0,0.00027397,12]
[327893449,1716583844264,-500.0,0.00027397,12]
[327893450,1716583844274,-500.0,0.00027397,12]
[327893451,1716583844284,-500.0,0.00027397,12]
[327893452,1716583844294,-500.0,0.00027397,12]
[327893453,1716583844303,-500.0,0.00027397,12]
[327893454,1716583844313,-781.99,0.00027397,12]
[327893455,1716583844323,-500.0,0.00027397,12]
[327893456,1716583844333,-500.0,0.00027397,12]
[327893457,1716583844343,-640.86,0.00027397,12]
[327893458,1716583844352,-500.0,0.00027397,12]
[327893459,1716583844362,-500.0,0.00027397,12]
[327893460,1716583844372,-744.22,0.00027397,12]
[327893461,1716583844383,-459.82,0.00027397,12]
[327893462,1716583844394,-436.7,0.00027397,12]
[327893463,1716583844404,-1992.29,0.00027397,12]
[327893464,1716583844413,-1621.54,0.00027397,12]
[327893465,1716583844423,-500.0,0.00027397,12]
[327893466,1716583844432,-673.85,0.00027397,12]
[327893467,1716583844441,-2040.19,0.00027397,12]
[327893468,1716583844451,-500.0,0.00027397,12]
[327893469,1716583844460,-500.0,0.00027397,12]
[327893470,1716583844469,-999.87,0.00027397,12]
[327893471,1716583844480,-500.0,0.00027397,12]
[327893472,1716583844490,-500.0,0.00027397,12]
[327893473,1716583844499,-500.0,0.00027397,12]
[327893474,1716583844508,-500.0,0.00027671,13]
[327893475,1716583844518,-369.90787271,0.00027671,13]
[327893476,1716583844527,-576.94,0.00027671,13]
[327893477,1716583844537,-500.0,0.00027671,13]
[327893478,1716583844547,-500.0,0.00027671,13]
[327893479,1716583844556,-500.0,0.00027671,13]
[327893480,1716583844566,-369.21652864,0.00027671,13]
[327893481,1716583844575,-781.99,0.00027671,13]
[327893482,1716583844584,-500.0,0.00027671,13]
[327893483,1716583844594,-500.0,0.00027671,13]
[327893484,1716583844603,-500.0,0.00027671,13]
[327893485,1716583844612,-500.0,0.00027671,13]
[327893486,1716583844622,-744.22,0.00027671,13]
[327893487,1716583844632,-1992.29,0.00027671,13]
[327893488,1716583844641,-1621.54,0.00027671,13]
[327893489,1716583844651,-500.0,0.00027671,13]
[327893490,1716583844660,-673.85,0.00027671,13]
[327893491,1716583844669,-2040.19,0.00027671,13]
[327893492,1716583844679,-325.7,0.00027671,13]
[327893493,1716583844689,-500.0,0.00027671,13]
[327893494,1716583844698,-999.87,0.00027671,13]
[327893495,1716583844708,-500.0,0.00027671,13]
[327893496,1716583844717,-451.95,0.00027671,13]
[327893497,1716583844727,-500.0,0.00027671,13]
[327893498,1716583844738,-2250.77,0.00027799,3]
[327893499,1716583844747,-3640.27072653,0.000278,2]
[327893500,1716583844756,-1038.41,0.00027944,15]
[327893501,1716583844765,-500.0,0.00027945,14]
[327893502,1716583844775,-500.0,0.00027945,14]
[327893503,1716583844784,-500.0,0.00027945,14]
[327893504,1716583844793,-781.99,0.00027945,14]
[327893505,1716583844802,-500.0,0.00027945,14]
[327893506,1716583844812,-500.0,0.00027945,14]
[327893507,1716583844822,-500.0,0.00027945,14]
[327893508,1716583844832,-500.0,0.00027945,14]
[327893509,1716583844842,-744.22,0.00027945,14]
[327893510,1716583844851,-1992.29,0.00027945,14]
[327893511,1716583844860,-1621.54,0.00027945,14]
[327893512,1716583844869,-500.0,0.00027945,14]
[327893513,1716583844878,-673.85,0.00027945,14]
[327893514,1716583844887,-2040.19,0.00027945,14]
[327893515,1716583844896,-999.87,0.00027945,14]
[327893516,1716583844905,-500.0,0.00027945,14]
[327893517,1716583844914,-221.76141425,0.00028,2]
[327893518,1716583844923,-500.0,0.00028219,15]
[327893519,1716583844931,-500.0,0.00028219,15]
[327893520,1716583844940,-500.0,0.00028219,15]
[327893521,1716583844949,-781.99,0.00028219,15]
[327893522,1716583844958,-500.0,0.00028219,15]
[327893523,1716583844967,-500.0,0.00028219,15]
[327893524,1716583844977,-500.0,0.00028219,15]
[327893525,1716583844986,-500.0,0.00028219,15]